fUSD/lending_fUSD_20240107
["ID","MTS","AMOUNT","RATE_DAILY","PERIOD"]
[310713340,1704651571172,150.0,0.00021925,2]
[310713341,1704651571194,150.0,0.00021925,2]
[310713342,1704651571216,8.63905508,0.00021925,2]
[310713343,1704651589119,150.0,0.00021925,2]
[310713344,1704651589143,150.0,0.00021925,2]
[310713345,1704651589166,308.63905508,0.00021925,2]
[310713346,1704651605930,150.0,0.00021591,2]
[310713347,1704651605955,150.0,0.00021591,2]
[310713348,1704651605977,202.63716659,0.00021591,2]
[310713349,1704651606000,3.54283341,0.00021591,2]
[310713350,1704651609142,608.63905508,0.00021925,2]
[310713351,1704651627138,513.78182583,0.00021925,2]
[310713361,1704651806228,150.0,0.00021913,2]
[310713362,1704651806250,150.0,0.00021913,2]
[310713363,1704651806274,299.279793,0.00021913,2]
[310713366,1704651840955,153.49385462,0.00021949,2]
[310713367,1704651853225,156.96323778,0.00021925,2]
[310713374,1704651868049,584.37,0.00021991,2]
[310713375,1704651870921,15448.86,0.00021828,2]
[310713382,1704651887534,527.66,0.00021392,2]
[310713395,1704651907856,645.19,0.00021392,2]
[310713396,1704651914183,172.7,0.00021377,2]
[310713397,1704651927240,6328.18,0.00021377,2]
[310713398,1704651953201,1200.35,0.00021377,2]
[310713404,1704651969379,200.0,0.00021377,2]
[310713407,1704651972147,500.0,0.00021377,2]
[310713408,1704651983513,4635.39,0.00021918,2]
[310713409,1704651993118,12479.33,0.00021352,2]
[310713410,1704651997506,160.53,0.00021352,2]
[310713411,1704651999113,896.0,0.00021352,2]
[310713412,1704652023419,1506.76,0.00021523,2]
[310713413,1704652027545,480.87,0.00019458,2]
[310713414,1704652027586,480.87,0.00021722,2]
[310713415,1704652060355,2000.0,0.00021376,2]
[310713416,1704652124472,229.78,0.00021352,2]
[310713417,1704652160408,150.0,0.00021352,2]
[310713418,1704652165584,176.89,0.00021352,2]
[310713419,1704652177827,2540.26,0.0002137,2]
[310713423,1704652194987,250.0,0.00021352,2]
[310713424,1704652204796,23900.0,0.00021355,2]
[310713425,1704652208203,750.0,0.00021355,2]
[310713446,1704652231953,-0.6676706,0.00022023,2]
[310713447,1704652231963,-500.35392576,0.00022027,2]
[310713448,1704652231972,-52.2983669,0.00022028,2]
[310713453,1704652232061,-500.83364454,0.00022028,2]
[310713454,1704652232071,-1499.16635546,0.0002204,2]
[310713455,1704652232082,-611.15099865,0.0002204,2]
[310713456,1704652232120,-470.94352157,0.0002204,2]
[310713457,1704652232133,-377.71791048,0.0002204,2]
[310713458,1704652232178,-294.39500672,0.0002204,2]
[310713459,1704652232187,-150.0,0.00022046,2]
[310713460,1704652232197,-11790.17837994,0.00022047,2]
[310713461,1704652232207,-264.73235728,0.00022048,2]
[310713462,1704652232216,-759.81099856,0.00022049,2]
[310713463,1704652232228,-784.17302211,0.00022049,2]
[310713464,1704652232239,-2405.49206027,0.00022049,2]
[310713465,1704652232250,-753.71685939,0.00022049,2]
[310713466,1704652232308,-695.75154528,0.00022049,2]
[310713467,1704652232319,-5433.42665168,0.00022049,2]
[310713468,1704652232349,-609.86344662,0.00022049,2]
[310713471,1704652232365,-9999.44931609,0.00022049,2]
[310713473,1704652232375,-38678.48665369,0.00022049,2]
[310713551,1704652238051,-437.70943335,0.00022049,2]
[310713552,1704652238160,-6541.41794213,0.00022049,2]
[310713553,1704652238172,-6231.39287083,0.00022049,2]
[310713554,1704652238182,-584.37,0.00022052,2]
[310713555,1704652238191,-363.58513325,0.00022072,2]
[310713556,1704652238200,-584.37,0.00022112,2]
[310713557,1704652238210,-12487.76,0.00022112,2]
[310713558,1704652238220,-1284.11,0.00022112,2]
[310713559,1704652238229,-540.71,0.00022112,2]
[310713560,1704652238238,-910.17,0.00022112,2]
[310713561,1704652238247,-709.7,0.00022112,2]
[310713562,1704652238256,-9999.99,0.00022112,2]
[310713563,1704652238265,-9999.99,0.00022112,2]
[310713564,1704652238274,-150.99,0.00022112,2]
[310713565,1704652238283,-165.76,0.00022129,2]
[310713566,1704652238292,-155.0,0.00022147,2]
[310713567,1704652238301,-444.27979208,0.00022147,2]
[310713568,1704652238310,-1424.24937271,0.00022147,2]
[310713569,1704652238320,-237.39756375,0.00022147,2]
[310713570,1704652238330,-739.61086509,0.00022148,2]
[310713571,1704652238339,-32954.32320179,0.00022149,2]
[310713588,1704652238794,-146488.01221776,0.00022149,2]
[310713589,1704652239051,-22742.46178045,0.00022149,2]
[310713590,1704652239062,-584.37,0.00022172,2]
[310713591,1704652239071,-584.37,0.00022232,2]
[310713592,1704652239081,-255.75237296,0.00022245,2]
[310713593,1704652239091,-155.0,0.00022246,2]
[310713594,1704652239102,-269.25926528,0.00022246,2]
[310713595,1704652239112,-3898.91905065,0.00022246,2]
[310713596,1704652239122,-642.28505902,0.00022248,2]
[310713597,1704652239131,-133230.37521309,0.00022248,2]
[310713598,1704652239141,-584.37,0.00022293,2]
[310713599,1704652239150,-584.37,0.00022353,2]
[310713600,1704652239159,-645.19,0.0002237,2]
[310713601,1704652239169,-155.0,0.00022389,2]
[310713602,1704652239178,-584.37,0.00022413,2]
[310713603,1704652239187,-584.37,0.00022474,2]
[310713604,1704652239196,-200.0,0.00022531,2]
[310713605,1704652239205,-584.37,0.00022534,2]
[310713606,1704652239214,-584.37,0.00022594,2]
[310713607,1704652239223,-584.37,0.00022655,2]
[310713608,1704652239233,-1000.0,0.0002267,2]
[310713609,1704652239242,-6146.8484,0.0002267,2]
[310713610,1704652239251,-153.49385456,0.00022672,2]
[310713611,1704652239260,-460.96,0.00022699,2]
[310713612,1704652239269,-197.2524744,0.00022701,2]
[310713613,1704652239279,-584.37,0.00022715,2]
[310713614,1704652239289,-584.37,0.00022775,2]
[310713615,1704652239300,-584.37,0.00022835,2]
[310713616,1704652239309,-584.37,0.00022896,2]
[310713617,1704652239320,-584.37,0.00022956,2]
[310713618,1704652239329,-300.0,0.00022999,2]
[310713619,1704652239340,-300.0,0.00022999,2]
[310713620,1704652239349,-300.0,0.00022999,2]
[310713621,1704652239360,-300.0,0.00022999,2]
[310713622,1704652239370,-305.84192038,0.00022999,2]
[310713623,1704652239380,-932.02592622,0.00023,2]
[310713624,1704652239389,-303.95,0.00023,2]
[310713625,1704652239398,-193.43,0.00023014,2]
[310713626,1704652239408,-584.37,0.00023016,2]
[310713627,1704652239419,-584.37,0.00023077,2]
[310713628,1704652239429,-584.37,0.00023137,2]
[310713629,1704652239439,-189.97,0.0002325,2]
[310713630,1704652239449,-645.19,0.00023348,2]
[310713631,1704652239460,-153.49385456,0.00023395,2]
[310713632,1704652239470,-739.61086509,0.0002397,2]
[310713633,1704652239481,-480.87,0.00023986,2]
[310713634,1704652239490,-896.0,0.00024021,2]
[310713635,1704652239499,-176.89,0.00024092,2]
[310713636,1704652239509,-153.49385456,0.00024117,2]
[310713637,1704652239519,-165.76,0.00024211,2]
[310713638,1704652239530,-210.0,0.0002425,2]
[310713639,1704652239540,-174.79,0.00024297,2]
[310713640,1704652239550,-645.19,0.00024327,2]
[310713641,1704652239560,-250.0,0.00024658,2]
[310713642,1704652239571,-153.49385456,0.0002484,2]
[310713643,1704652239582,-172.00936612,0.00025,2]
[310713644,1704652239593,-3034.08810881,0.00025,2]
[310713645,1704652239603,-1016.22827745,0.00025,2]
[310713646,1704652239612,-1245.75987952,0.00025,2]
[310713647,1704652239622,-302.71173098,0.00025,2]
[310713648,1704652239631,-166.9760429,0.00025,2]
[310713649,1704652239641,-691.04005445,0.00025,2]
[310713650,1704652239651,-650.0,0.00025,2]
[310713651,1704652239660,-350.0,0.00025,3]
[310713652,1704652239670,-450.0,0.0002502,3]
[310713653,1704652239679,-363.58513323,0.00025081,2]
[310713654,1704652239688,-174.26,0.0002521,2]
[310713655,1704652239698,-645.19,0.00025305,2]
[310713656,1704652239707,-173.33,0.00025419,2]
[310713657,1704652239717,-153.49385456,0.00025563,2]
[310713658,1704652239726,-172.7,0.00025652,2]
[310713659,1704652239735,-739.61086509,0.00025791,2]
[310713660,1704652239745,-402.95,0.00025863,2]
[310713661,1704652239754,-192.55,0.00025878,2]
[310713662,1704652239764,-402.95,0.00025999,2]
[310713663,1704652239773,-150.0,0.00026079,2]
[310713664,1704652239782,-165.72,0.00026105,2]
[310713665,1704652239792,-164.05,0.00026106,2]
[310713666,1704652239802,-402.95,0.00026136,2]
[310713667,1704652239811,-480.87,0.0002625,2]
[310713668,1704652239820,-402.95,0.00026272,2]
[310713669,1704652239829,-645.19,0.00026284,2]
[310713670,1704652239839,-153.49385456,0.00026286,2]
[310713671,1704652239848,-165.76,0.00026292,2]
[310713672,1704652239857,-402.95,0.00026408,2]
[310713673,1704652239867,-402.95,0.00026544,2]
[310713674,1704652239876,-210.0,0.00026675,2]
[310713675,1704652239886,-402.95,0.0002668,2]
[310713676,1704652239895,-896.0,0.0002669,2]
[310713677,1704652239905,-164.05,0.00026807,2]
[310713678,1704652239914,-402.95,0.00026816,2]
[310713679,1704652239923,-402.95,0.00026952,2]
[310713680,1704652239933,-400.0,0.00027,3]
[310713681,1704652239942,-153.49385456,0.00027009,2]
[310713682,1704652239953,-402.95,0.00027088,2]
[310713683,1704652239962,-192.55,0.00027171,2]
[310713684,1704652239972,-402.95,0.00027224,2]
[310713685,1704652239981,-645.19,0.00027262,2]
[310713686,1704652239991,-402.95,0.00027361,2]
[310713687,1704652240000,-155.0,0.00027397,2]
[310713688,1704652240010,-250.0,0.00027397,2]
[310713689,1704652240019,-500.0,0.00027397,2]
[310713690,1704652240038,-2542.78,0.00027397,2]
[310713691,1704652240049,-250.0,0.000274,2]
[310713692,1704652240059,-2000.0,0.000274,2]
[310713693,1704652240069,-151.08575908,0.000274,2]
[310713694,1704652240079,-3000.0,0.000274,2]
[310713695,1704652240089,-500.0,0.000274,2]
[310713696,1704652240099,-402.95,0.00027497,2]
[310713697,1704652240110,-672.47944908,0.000275,4]
[310713698,1704652240120,-174.26,0.00027505,2]
[310713699,1704652240131,-164.05,0.00027509,2]
[310713700,1704652240140,-739.61086509,0.00027613,3]
[310713701,1704652240150,-402.95,0.00027633,2]
[310713702,1704652240161,-153.49385456,0.00027732,2]
[310713703,1704652240170,-402.95,0.00027769,2]
[310713704,1704652240180,-402.95,0.00027905,2]
[310713705,1704652240189,-1536.65,0.00027945,2]
[310713706,1704652240200,-193.43,0.00027945,2]
[310713707,1704652240209,-23629.16,0.00027945,2]
[310713708,1704652240219,-214.79320019,0.00027979,7]
[310713709,1704652240229,-3573.31711937,0.00027979,7]
[310713710,1704652240239,-639.45842334,0.00027979,7]
[310713711,1704652240248,-437.83743254,0.00027979,7]
[310713712,1704652240258,-309.2366341,0.00027979,7]
[310713713,1704652240267,-229.49017991,0.00027979,7]
[310713714,1704652240276,-180.45670241,0.00027979,7]
[310713715,1704652240286,-687.02354933,0.00028,2]
[310713716,1704652240296,-202.53914952,0.00028,2]
[310713717,1704652240306,-402.95,0.00028041,2]
[310713718,1704652240315,-363.58513323,0.00028091,2]
[310713719,1704652240325,-402.95,0.00028177,2]
[310713720,1704652240335,-164.05,0.0002821,2]
[310713721,1704652240344,-645.19,0.00028241,2]
[310713722,1704652240354,-174.79,0.00028307,2]
[310713723,1704652240364,-402.95,0.00028313,2]
[310713724,1704652240373,-402.95,0.00028449,2]
[310713725,1704652240383,-153.49385456,0.00028454,2]
[310713726,1704652240392,-192.55,0.00028465,2]
[310713727,1704652240402,-175.9,0.000285,2]
[310713728,1704652240412,-480.87,0.00028513,2]
[310713729,1704652240422,-155.0,0.00028767,2]
[310713730,1704652240432,-154.26,0.00028856,2]
[310713731,1704652240441,-164.05,0.00028912,2]
[310713732,1704652240451,-223.79320271,0.00028948,2]
[310713733,1704652240460,-204.0,0.00028953,2]
[310713734,1704652240469,-167.16774484,0.0002899,2]
[310713735,1704652240479,-150.01,0.00028999,2]
[310713736,1704652240488,-326.17,0.00028999,2]
[310713737,1704652240497,-326.17,0.00028999,2]
[310713738,1704652240506,-326.17,0.00028999,2]
[310713739,1704652240515,-326.17,0.00028999,2]
[310713740,1704652240525,-326.17,0.00028999,2]
[310713741,1704652240534,-326.17,0.00028999,2]
[310713742,1704652240543,-326.17,0.00028999,2]
[310713743,1704652240552,-326.17,0.00028999,2]
[310713744,1704652240561,-124229.5849577,0.00029,2]
[310713745,1704652240571,-450.0,0.00029,3]
[310713746,1704652240580,-175.9,0.00029048,2]
[310713747,1704652240590,-154.26,0.00029097,2]
[310713748,1704652241050,-153.49385456,0.00029177,2]
[310713749,1704652241059,-645.19,0.00029219,2]
[310713750,1704652241069,-154.26,0.00029337,2]
[310713751,1704652241079,-896.0,0.00029359,2]
[310713752,1704652241088,-739.61086509,0.00029435,4]
[310713753,1704652241098,-150.01,0.00029499,2]
[310713754,1704652241110,-126341.13689774,0.000295,2]
[310713755,1704652241124,-948.19036636,0.000295,2]
[310713756,1704652241136,-415.94592852,0.000295,2]
[310713757,1704652241192,-4993.29168812,0.000295,2]
[310713758,1704652241203,-753.50631651,0.000295,2]
[310713759,1704652241215,-948.984565,0.000295,2]
[310713760,1704652241247,-35601.33098175,0.000295,2]
[310713761,1704652241256,-154.26,0.00029577,2]
[310713762,1704652241266,-351.02,0.00029596,2]
[310713763,1704652241276,-164.05,0.00029614,2]
[310713764,1704652241286,-192.55,0.00029759,2]
[310713765,1704652241295,-174.26,0.000298,2]
[310713766,1704652241305,-154.26,0.00029818,2]
[310713767,1704652241314,-13758.40676925,0.00029899,2]
[310713768,1704652241324,-14827.28484198,0.000299,2]
[310713769,1704652241333,-153.49385456,0.000299,2]
[310713770,1704652241343,-7669.16945833,0.000299,2]
[310713771,1704652241353,-278.42758562,0.000299,2]
[310713772,1704652241363,-186.70978932,0.000299,2]
[310713773,1704652241372,-388.00492071,0.000299,2]
[310713774,1704652241381,-208.1229971,0.000299,2]
[310713775,1704652241391,-775.57805281,0.000299,2]
[310713776,1704652241400,-352.29864655,0.000299,2]
[310713777,1704652241410,-527.66,0.00029948,2]
[310713778,1704652241419,-690.18549596,0.0002998,3]
[310713779,1704652241428,-880971.49517796,0.00029999,2]
[310713780,1704652241437,-155.46046259,0.0003,4]
[310713781,1704652241447,-251.86806399,0.0003,3]
[310713782,1704652241456,-155.0,0.0003,2]
[310713783,1704652241465,-445.03249275,0.0003,4]
[310713784,1704652241474,-1802.90872975,0.0003,4]
[310713785,1704652241484,-811.96653213,0.0003,4]
[310713786,1704652241493,-2500.0,0.0003,2]
[310713787,1704652241503,-2732.34274577,0.0003,2]
[310713788,1704652241512,-14366.1102968,0.0003,2]
[310713789,1704652241522,-308057.51614315,0.0003,4]
[310713790,1704652241531,-689.70324588,0.0003,2]
[310713791,1704652241540,-157.4,0.0003,2]
[310713792,1704652241550,-2966.0,0.0003,4]
[310713793,1704652241559,-4223.0,0.0003,4]
[310713794,1704652241568,-450.0,0.0003002,3]
[310713795,1704652241577,-154.26,0.00030058,2]
[310713796,1704652241591,-150.0,0.000301,2]
[310713797,1704652241600,-153.84,0.00030137,2]
[310713800,1704652241612,-10000.0,0.00030137,2]
[310713803,1704652241623,-200.0,0.00030137,2]
[310713805,1704652241634,-155.0,0.00030137,2]
[310713807,1704652241645,-645.19,0.00030198,2]
[310713809,1704652241657,-500.0,0.000302,2]
[310713811,1704652241667,-250.0,0.000302,2]
[310713813,1704652241678,-450.0,0.00030236,3]
[310713815,1704652241688,-154.26,0.00030299,2]
[310713818,1704652241701,-943.0,0.00030303,2]
[310713820,1704652241713,-1027.0,0.00030303,2]
[310713821,1704652241724,-1234.0,0.00030303,2]
[310713822,1704652241737,-1137.0,0.00030303,2]
[310713823,1704652241747,-164.05,0.00030315,2]
[310713824,1704652241757,-7669.16945825,0.00030355,2]
[310713825,1704652241766,-204.0,0.00030432,4]
[310713826,1704652241775,-450.0,0.00030451,3]
[310713827,1704652241786,-3894.148,0.00030468,2]
[310713828,1704652241796,-2897.0,0.00030468,2]
[310713829,1704652241806,-2266.0,0.00030468,2]
[310713830,1704652241815,-1127.581,0.00030468,2]
[310713831,1704652241825,-1277.04,0.00030468,2]
[310713832,1704652241836,-250.0,0.00030474,2]
[310713833,1704652241846,-154.26,0.00030539,2]
[310713834,1704652241858,-152.42425773,0.00030648,2]
[310713835,1704652241868,-450.0,0.00030667,3]
[310713836,1704652241880,-150.0,0.00030764,2]
[310713837,1704652241889,-150.0,0.00030764,2]
[310713838,1704652241898,-150.0,0.00030764,2]
[310713839,1704652241909,-150.0,0.00030764,2]
[310713840,1704652241920,-150.0,0.00030764,2]
[310713841,1704652241930,-150.0,0.00030764,2]
[310713842,1704652241941,-150.0,0.00030764,2]
[310713843,1704652241951,-150.0,0.00030764,2]
[310713844,1704652241962,-150.0,0.00030764,2]
[310713845,1704652241973,-150.0,0.00030764,2]
[310713846,1704652241984,-150.0,0.00030764,2]
[310713847,1704652241994,-150.0,0.00030764,2]
[310713848,1704652242004,-150.0,0.00030764,2]
[310713849,1704652242014,-150.0,0.00030764,2]
[310713850,1704652242025,-150.0,0.00030764,2]
[310713851,1704652242036,-150.0,0.00030764,2]
[310713852,1704652242046,-150.0,0.00030764,2]
[310713853,1704652242056,-150.0,0.00030764,2]
[310713854,1704652242065,-150.0,0.00030764,2]
[310713855,1704652242075,-150.0,0.00030764,2]
[310713856,1704652242084,-200.0,0.00030764,2]
[310713857,1704652242094,-177.0,0.00030764,2]
[310713858,1704652242104,-7999.99,0.00030777,14]
[310713859,1704652242114,-151.0,0.00030777,7]
[310713860,1704652242126,-151.0,0.00030777,7]
[310713861,1704652242135,-151.0,0.00030777,7]
[310713862,1704652242145,-151.0,0.00030777,7]
[310713863,1704652242154,-151.0,0.00030777,7]
[310713864,1704652242164,-480.87,0.00030777,2]
[310713865,1704652242174,-154.26,0.0003078,2]
[310713866,1704652242184,-151.0,0.00030809,7]
[310713867,1704652242194,-151.0,0.00030809,7]
[310713868,1704652242204,-284.102943,0.00030809,7]
[310713869,1704652242215,-284.102943,0.00030809,7]
[310713870,1704652242226,-151.0,0.00030809,7]
[310713871,1704652242236,-242.118197,0.00030809,7]
[310713872,1704652242247,-151.0,0.00030809,7]
[310713873,1704652242257,-151.0,0.00030809,7]
[310713874,1704652242267,-200.0,0.00030809,7]
[310713875,1704652242278,-200.0,0.00030809,7]
[310713876,1704652242288,-7669.16945825,0.00030809,2]
[310713877,1704652242300,-150.0,0.00030829,2]
[310713878,1704652242311,-1224.58990715,0.00030844,4]
[310713879,1704652242322,-1500.0,0.00030874,2]
[310713880,1704652242333,-450.0,0.00030883,3]
[310713881,1704652242344,-1500.0,0.00030892,2]
[310713882,1704652242354,-150.0,0.00030928,2]
[310713883,1704652242366,-167.0,0.00030928,2]
[310713884,1704652242376,-150.0,0.00030938,2]
[310713885,1704652242387,-1500.0,0.00031,2]
[310713886,1704652242398,-184.90562178,0.00031008,2]
[310713887,1704652242408,-164.05,0.00031017,2]
[310713888,1704652242419,-154.26,0.0003102,2]
[310713889,1704652242429,-153.84,0.0003105,2]
[310713890,1704652242440,-192.55,0.00031053,2]
[310713891,1704652242451,-2961.23612,0.0003108,2]
[310713892,1704652242462,-6650.09,0.00031096,3]
[310713893,1704652242472,-450.0,0.00031098,3]
[310713894,1704652242482,-1267.115,0.000311,2]
[310713895,1704652242494,-208.0,0.000311,2]
[310713896,1704652242507,-2000.0,0.000311,4]
[310713897,1704652242516,-21067.3677,0.000311,2]
[310713898,1704652242526,-537.5464,0.000311,2]
[310713899,1704652242536,-8359.8173,0.000311,2]
[310713900,1704652242546,-151.0,0.000311,7]
[310713901,1704652242556,-151.0,0.000311,7]
[310713902,1704652242567,-151.0,0.000311,7]
[310713903,1704652242577,-151.0,0.000311,7]
[310713904,1704652242587,-151.0,0.000311,7]
[310713905,1704652242598,-155.21266,0.000311,7]
[310713906,1704652242610,-151.0,0.000311,7]
[310713907,1704652242620,-151.0,0.000311,7]
[310713908,1704652242629,-151.0,0.000311,7]
[310713909,1704652242639,-363.58513323,0.000311,2]
[310713910,1704652242648,-2961.23612,0.0003112,2]
[310713911,1704652242657,-2961.23611,0.0003113,2]
[310713912,1704652242666,-2961.23611,0.0003116,2]
[310713913,1704652242676,-645.19,0.00031176,2]
[310713914,1704652242686,-167.16774484,0.0003119,2]
[310713915,1704652242695,-150.0,0.00031191,2]
[310713916,1704652242704,-470.46975899,0.00031198,4]
[310713917,1704652242713,-150.0,0.00031198,2]
[310713918,1704652242723,-359.42620612,0.00031199,4]
[310713919,1704652242733,-1000.0,0.00031199,2]
[310713920,1704652242742,-1000.0,0.00031199,2]
[310713921,1704652242752,-1000.0,0.00031199,2]
[310713923,1704652242763,-1000.0,0.00031199,2]
[310713925,1704652242774,-1000.0,0.00031199,2]
[310713927,1704652242783,-1000.0,0.00031199,2]
[310713929,1704652242792,-1000.0,0.00031199,2]
[310713930,1704652242803,-1000.0,0.00031199,2]
[310713931,1704652242813,-1000.0,0.00031199,2]
[310713932,1704652242822,-1000.0,0.00031199,2]
[310713933,1704652242832,-1000.0,0.00031199,2]
[310713934,1704652242842,-1000.0,0.00031199,2]
[310713935,1704652242853,-1135.98765961,0.00031199,2]
[310713936,1704652242862,-731.72,0.000312,2]
[310713937,1704652242872,-934040.93509028,0.000312,2]
[310713938,1704652242881,-2000.0,0.000312,2]
[310713939,1704652242891,-200.0,0.000312,2]
[310713940,1704652242900,-156.142528,0.000312,7]
[310713941,1704652242910,-151.0,0.000312,7]
[310713942,1704652242919,-151.0,0.000312,7]
[310713943,1704652242929,-151.0,0.000312,7]
[310713944,1704652242938,-151.0,0.000312,7]
[310713946,1704652242948,-166.513811,0.000312,7]
[310713948,1704652242957,-151.0,0.000312,7]
[310713950,1704652242967,-151.0,0.000312,7]
[310713952,1704652242977,-2961.23612,0.000312,2]
[310713954,1704652242986,-151.0,0.000312,7]
[310713956,1704652242996,-284.102943,0.000312,7]
[310713957,1704652243006,-284.102943,0.000312,7]
[310713958,1704652243015,-151.0,0.000312,7]
[310713959,1704652243025,-256.472664,0.000312,7]
[310713960,1704652243035,-151.0,0.000312,7]
[310713961,1704652243044,-200.0,0.000312,7]
[310713962,1704652243053,-200.0,0.000312,7]
[310713963,1704652243063,-151.0,0.000312,7]
[310713964,1704652243073,-2961.23612,0.0003124,2]
[310713965,1704652243083,-739.61086509,0.00031257,5]
[310713966,1704652243092,-154.26,0.00031261,2]
[310713967,1704652243102,-7669.16945825,0.00031264,2]
[310713968,1704652243112,-450.0,0.00031314,3]
[310713969,1704652243121,-500.0,0.000315,2]
[310713970,1704652243131,-154.26,0.00031501,2]
[310713971,1704652243141,-231.0354453,0.00031507,2]
[310713972,1704652243151,-2000.0,0.00031512,2]
[310713973,1704652243160,-200.0,0.00031512,2]
[310713974,1704652243170,-450.0,0.0003153,3]
[310713975,1704652243179,-724.28,0.0003154,2]
[310713976,1704652243188,-55555.0,0.00031698,3]
[310713977,1704652243198,-157.4,0.000317,2]
[310713978,1704652243207,-157.4,0.000317,2]
[310713979,1704652243216,-7669.16945825,0.00031718,3]
[310713980,1704652243225,-154.26,0.00031742,2]
[310713981,1704652243235,-450.0,0.00031745,3]
[310713982,1704652243245,-500.0,0.00031763,2]
[310713983,1704652243254,-11441.14494983,0.00031764,7]
[310713984,1704652243264,-8892.27079102,0.00031764,7]
[310713985,1704652243273,-9721.61378392,0.00031764,7]
[310713986,1704652243283,-8988.18718787,0.00031764,7]
[310713987,1704652243292,-5011.80602205,0.00031764,7]
[310713988,1704652243301,-3858.23446333,0.00031764,7]
[310713989,1704652243311,-173.33,0.00031773,2]
[310713990,1704652243321,-152.0,0.0003179,3]
[310713991,1704652243330,-157.15051088,0.00031795,4]
[310713992,1704652243340,-525.72214603,0.00031796,4]
[310713993,1704652243350,-13293.44639488,0.00031797,4]
[310713994,1704652243360,-429.36757461,0.00031798,4]
[310713995,1704652243369,-221.08000617,0.00031798,4]
[310713996,1704652243379,-155.0,0.00031798,4]
[310713997,1704652243388,-361.05118527,0.00031798,4]
[310713998,1704652243398,-330.0,0.00031798,4]
[310713999,1704652243407,-383.42158832,0.00031798,4]
[310714000,1704652243417,-196.30617543,0.00031798,4]
[310714001,1704652243426,-722.60032246,0.00031798,4]
[310714002,1704652243435,-1889.54778276,0.00031798,4]
[310714004,1704652243444,-375.2657626,0.00031798,4]
[310714006,1704652243454,-1224.79856906,0.00031798,4]
[310714008,1704652243464,-1507.63255675,0.00031798,2]
[310714009,1704652243565,-3178.93320891,0.00031798,4]
[310714010,1704652243574,-380.53603399,0.00031798,4]
[310714011,1704652243584,-4252.53898186,0.00031798,4]
[310714012,1704652243595,-202.60729845,0.00031798,4]
[310714013,1704652243606,-214.96212171,0.00031798,4]
[310714014,1704652243616,-207.36009217,0.00031798,4]
[310714015,1704652243625,-937.8219451,0.00031798,4]
[310714016,1704652243634,-2263.96943386,0.00031798,4]
[310714017,1704652243643,-155.0,0.00031798,4]
[310714018,1704652243652,-1863.66263035,0.00031798,4]
[310714019,1704652243661,-2358.62314742,0.00031798,4]
[310714020,1704652243670,-1850.80818134,0.00031799,4]
[310714021,1704652243679,-151.0,0.000318,7]
[310714022,1704652243688,-319276.978111,0.000318,3]
[310714023,1704652243698,-151.0,0.000318,7]
[310714024,1704652243706,-284.102943,0.000318,7]
[310714025,1704652243715,-284.102943,0.000318,7]
[310714026,1704652243724,-175.305274,0.000318,7]
[310714027,1704652243733,-151.0,0.000318,7]
[310714028,1704652243742,-200.0,0.000318,7]
[310714029,1704652243751,-200.0,0.000318,7]
[310714030,1704652243761,-2000.0,0.00031827,2]